[Event "*** SCC Grand Prix: Titled Tuesday Blitz"]
[Site "Chess.com"]
[Date "2020.07.07"]
[Round "1"]
[White "ChessQueen"]
[Black "Xeniya2005"]
[Result "1-0"]
[WhiteElo "2682"]
[BlackElo "2364"]
[TimeControl "180+1"]
[EndTime "10:06:19 PDT"]
[Termination "ChessQueen won by resignation"]

1. e4 {[%clk 0:02:59.9]} 1... e6 {[%clk 0:02:59.1]} 2. d4 {[%clk 0:02:57.6]}
2... d5 {[%clk 0:02:57.4]} 3. Nc3 {[%clk 0:02:57]} 3... Bb4 {[%clk 0:02:56.4]}
4. a3 {[%clk 0:02:56.8]} 4... Bxc3+ {[%clk 0:02:54.1]} 5. bxc3 {[%clk
0:02:55.6]} 5... Ne7 {[%clk 0:02:48.1]} 6. Bd3 {[%clk 0:02:44.6]} 6... c5 {[%clk
0:02:46.5]} 7. Qg4 {[%clk 0:02:29.1]} 7... O-O {[%clk 0:02:35.1]} 8. e5 {[%clk
0:02:26.5]} 8... Ng6 {[%clk 0:02:24.8]} 9. h4 {[%clk 0:02:24.5]} 9... c4 {[%clk
0:01:56.7]} 10. Bxg6 {[%clk 0:02:19]} 10... fxg6 {[%clk 0:01:54.9]} 11. h5
{[%clk 0:02:17.6]} 11... Qe8 {[%clk 0:01:44.1]} 12. Nf3 {[%clk 0:02:15.9]} 12...
Qf7 {[%clk 0:01:29.8]} 13. hxg6 {[%clk 0:02:04.3]} 13... Qxg6 {[%clk 0:01:24.7]}
14. Qxg6 {[%clk 0:02:03.8]} 14... hxg6 {[%clk 0:01:24]} 15. a4 {[%clk
0:02:03.2]} 15... Nc6 {[%clk 0:01:19.3]} 16. Ba3 {[%clk 0:02:00]} 16... Rf5
{[%clk 0:01:16.9]} 17. Ke2 {[%clk 0:01:55.8]} 17... Kf7 {[%clk 0:01:15.3]} 18.
Rh8 {[%clk 0:01:54]} 18... g5 {[%clk 0:01:11.3]} 19. g4 {[%clk 0:01:50.6]} 19...
Rf4 {[%clk 0:01:08.8]} 20. Nxg5+ {[%clk 0:01:46.8]} 20... Kg6 {[%clk 0:01:08.1]}
21. Nh3 {[%clk 0:01:30.4]} 21... Rf7 {[%clk 0:00:41.4]} 22. Ke3 {[%clk
0:01:24.4]} 22... b6 {[%clk 0:00:31.4]} 23. Nf4+ {[%clk 0:01:23.3]} 23... Rxf4
{[%clk 0:00:31.3]} 24. Kxf4 {[%clk 0:01:22.2]} 24... Bb7 {[%clk 0:00:31.2]} 25.
Rah1 {[%clk 0:01:19.9]} 25... a6 {[%clk 0:00:26.1]} 26. Rxa8 {[%clk 0:01:14.7]}
26... Bxa8 {[%clk 0:00:27]} 27. Rh8 {[%clk 0:01:14]} 27... Bb7 {[%clk
0:00:26.8]} 28. Bd6 {[%clk 0:01:09.1]} 28... b5 {[%clk 0:00:26.2]} 29. axb5
{[%clk 0:01:07.4]} 29... axb5 {[%clk 0:00:27.1]} 30. Ke3 {[%clk 0:01:04.4]}
30... Kf7 {[%clk 0:00:24.9]} 31. f4 {[%clk 0:01:03.7]} 31... g6 {[%clk
0:00:23.4]} 32. Rh7+ {[%clk 0:01:03.5]} 1-0

[Event "*** SCC Grand Prix: Titled Tuesday Blitz"]
[Site "Chess.com"]
[Date "2020.07.07"]
[Round "1"]
[White "Zmof"]
[Black "Undisputed92"]
[Result "0-1"]
[WhiteElo "2211"]
[BlackElo "2565"]
[TimeControl "180+1"]
[EndTime "10:06:19 PDT"]
[Termination "Undisputed92 won by resignation"]

1. e4 {[%clk 0:02:54.5]} 1... c5 {[%clk 0:02:59.9]} 2. Nf3 {[%clk 0:02:53.9]}
2... d6 {[%clk 0:03:00.2]} 3. Bb5+ {[%clk 0:02:53.2]} 3... Nd7 {[%clk
0:02:59.7]} 4. Ba4 {[%clk 0:02:52.8]} 4... Nf6 {[%clk 0:02:58.2]} 5. Qe2 {[%clk
0:02:52.2]} 5... Qa5 {[%clk 0:02:50.6]} 6. Bb3 {[%clk 0:02:47.8]} 6... e6 {[%clk
0:02:48.3]} 7. O-O {[%clk 0:02:45.8]} 7... Be7 {[%clk 0:02:48.4]} 8. c3 {[%clk
0:02:43.4]} 8... O-O {[%clk 0:02:44.1]} 9. d4 {[%clk 0:02:42.7]} 9... e5 {[%clk
0:02:43.6]} 10. dxe5 {[%clk 0:02:38.3]} 10... Nxe5 {[%clk 0:02:43.1]} 11. Nxe5
{[%clk 0:02:37.7]} 11... dxe5 {[%clk 0:02:44]} 12. Nd2 {[%clk 0:02:37.2]} 12...
b5 {[%clk 0:02:43.2]} 13. a4 {[%clk 0:02:30.3]} 13... c4 {[%clk 0:02:42.9]} 14.
Bc2 {[%clk 0:02:27]} 14... a6 {[%clk 0:02:41.2]} 15. Rd1 {[%clk 0:02:03]} 15...
Bg4 {[%clk 0:02:37.1]} 16. f3 {[%clk 0:02:02.8]} 16... Be6 {[%clk 0:02:35.2]}
17. Nf1 {[%clk 0:02:01.8]} 17... Qb6+ {[%clk 0:02:31.3]} 18. Be3 {[%clk
0:02:00.7]} 18... Bc5 {[%clk 0:02:31.3]} 19. Bxc5 {[%clk 0:01:59.5]} 19... Qxc5+
{[%clk 0:02:32.2]} 20. Qe3 {[%clk 0:02:00.1]} 20... Nd7 {[%clk 0:02:31.1]} 21.
Qxc5 {[%clk 0:01:58.8]} 21... Nxc5 {[%clk 0:02:32]} 22. Ne3 {[%clk 0:01:59.4]}
22... g6 {[%clk 0:02:26.9]} 23. Kf2 {[%clk 0:01:58]} 23... Rfb8 {[%clk
0:02:21.1]} 24. Nd5 {[%clk 0:01:53.1]} 24... bxa4 {[%clk 0:02:16.2]} 25. Nc7
{[%clk 0:01:37.1]} 25... Rxb2 {[%clk 0:02:15.2]} 26. Nxa8 {[%clk 0:01:22.8]}
26... Rxc2+ {[%clk 0:02:14.9]} 27. Kg3 {[%clk 0:01:19.6]} 27... Rxc3 {[%clk
0:02:14.8]} 28. Nc7 {[%clk 0:01:17.3]} 28... a3 {[%clk 0:02:11.8]} 29. Nxe6
{[%clk 0:01:14.2]} 29... Nxe6 {[%clk 0:02:12.7]} 30. Rd5 {[%clk 0:01:14]} 30...
Nd4 {[%clk 0:02:04.9]} 31. Ra5 {[%clk 0:01:12.3]} 31... Nc2 {[%clk 0:02:04.7]}
32. Ra2 {[%clk 0:01:09.1]} 32... h5 {[%clk 0:02:04.1]} 33. h4 {[%clk 0:01:08.1]}
33... f5 {[%clk 0:01:54.4]} 34. exf5 {[%clk 0:01:03.2]} 34... gxf5 {[%clk
0:01:55.3]} 35. Rxe5 {[%clk 0:00:58.6]} 35... Nb4 {[%clk 0:01:54.6]} 36. Ra1
{[%clk 0:00:59.1]} 36... a2 {[%clk 0:01:55]} 37. Rxf5 {[%clk 0:00:55.5]} 37...
Rb3 {[%clk 0:01:55.2]} 38. Ra5 {[%clk 0:00:54]} 38... Rb2 {[%clk 0:01:51.9]} 39.
Ra4 {[%clk 0:00:49.3]} 39... c3 {[%clk 0:01:46.6]} 40. Rxb4 {[%clk 0:00:48.8]}
40... Rxb4 {[%clk 0:01:47.5]} 41. Rxa2 {[%clk 0:00:49.3]} 41... Rc4 {[%clk
0:01:48.1]} 42. Rc2 {[%clk 0:00:49.3]} 42... a5 {[%clk 0:01:48.5]} 43. Kf2
{[%clk 0:00:49.9]} 43... a4 {[%clk 0:01:48]} 44. Ke1 {[%clk 0:00:49.6]} 44... a3
{[%clk 0:01:43.9]} 45. Kd1 {[%clk 0:00:49.6]} 45... Rxh4 {[%clk 0:01:43.7]} 46.
Rxc3 {[%clk 0:00:49.1]} 46... Ra4 {[%clk 0:01:44.1]} 47. Rc1 {[%clk 0:00:47]}
47... a2 {[%clk 0:01:43.5]} 48. Ra1 {[%clk 0:00:47.4]} 48... Kf7 {[%clk
0:01:41.8]} 49. Kc2 {[%clk 0:00:47.6]} 49... h4 {[%clk 0:01:40.7]} 50. Kb2
{[%clk 0:00:47.4]} 50... Kf6 {[%clk 0:01:40.3]} 51. Rxa2 {[%clk 0:00:46.7]}
51... Rxa2+ {[%clk 0:01:40.5]} 52. Kxa2 {[%clk 0:00:47]} 52... Kf5 {[%clk
0:01:41.4]} 53. Kb3 {[%clk 0:00:46.8]} 53... Kf4 {[%clk 0:01:42.3]} 54. Kc4
{[%clk 0:00:46.1]} 54... Kg3 {[%clk 0:01:43.2]} 55. Kd4 {[%clk 0:00:44.6]} 55...
Kxg2 {[%clk 0:01:44.1]} 56. f4 {[%clk 0:00:45.2]} 56... h3 {[%clk 0:01:44.6]}
57. f5 {[%clk 0:00:45.9]} 57... h2 {[%clk 0:01:45.5]} 58. f6 {[%clk 0:00:46.5]}
58... h1=Q {[%clk 0:01:44.7]} 59. f7 {[%clk 0:00:47.1]} 59... Qh8+ {[%clk
0:01:44.5]} 60. Kd5 {[%clk 0:00:46.3]} 60... Qf8 {[%clk 0:01:45.4]} 61. Ke6
{[%clk 0:00:46.7]} 61... Kf3 {[%clk 0:01:45.7]} 62. Kf6 {[%clk 0:00:45.8]} 62...
Kf4 {[%clk 0:01:46.6]} 63. Kg6 {[%clk 0:00:46.4]} 63... Ke5 {[%clk 0:01:46.7]}
0-1

[Event "*** SCC Grand Prix: Titled Tuesday Blitz"]
[Site "Chess.com"]
[Date "2020.07.07"]
[Round "1"]
[White "MoreChessJulia"]
[Black "PlotnikovPavel"]
[Result "0-1"]
[WhiteElo "1813"]
[BlackElo "2473"]
[TimeControl "180+1"]
[EndTime "10:06:19 PDT"]
[Termination "PlotnikovPavel won by resignation"]

1. d4 {[%clk 0:02:59.2]} 1... e6 {[%clk 0:03:00.1]} 2. c4 {[%clk 0:02:58.7]}
2... f5 {[%clk 0:03:00.1]} 3. Nf3 {[%clk 0:02:58]} 3... Nf6 {[%clk 0:03:00.6]}
4. g3 {[%clk 0:02:57.6]} 4... Bb4+ {[%clk 0:03:00.4]} 5. Nbd2 {[%clk 0:02:53.1]}
5... O-O {[%clk 0:02:59.5]} 6. Bg2 {[%clk 0:02:52.8]} 6... b6 {[%clk 0:02:59.6]}
7. O-O {[%clk 0:02:52.1]} 7... Bb7 {[%clk 0:02:59.2]} 8. a3 {[%clk 0:02:51.7]}
8... Bxd2 {[%clk 0:02:55.6]} 9. Qxd2 {[%clk 0:02:49.3]} 9... Ne4 {[%clk
0:02:55.6]} 10. Qc2 {[%clk 0:02:48.9]} 10... Nc6 {[%clk 0:02:49.1]} 11. d5
{[%clk 0:02:43.6]} 11... Ne7 {[%clk 0:02:47.5]} 12. dxe6 {[%clk 0:02:38.2]}
12... dxe6 {[%clk 0:02:48.4]} 13. Bf4 {[%clk 0:02:33.4]} 13... Qc8 {[%clk
0:02:41.5]} 14. Rad1 {[%clk 0:02:31.6]} 14... Ng6 {[%clk 0:02:34.1]} 15. Ne5
{[%clk 0:02:27.9]} 15... Nxf4 {[%clk 0:02:28.8]} 16. gxf4 {[%clk 0:02:27.5]}
16... Rd8 {[%clk 0:02:28.3]} 17. b4 {[%clk 0:02:17.1]} 17... c5 {[%clk
0:02:20.8]} 18. Rxd8+ {[%clk 0:02:04.9]} 18... Qxd8 {[%clk 0:02:19.8]} 19. Rd1
{[%clk 0:02:05.1]} 19... Qh4 {[%clk 0:02:16.1]} 20. e3 {[%clk 0:02:04.2]} 20...
Rd8 {[%clk 0:02:15.2]} 21. Rxd8+ {[%clk 0:01:57.9]} 21... Qxd8 {[%clk
0:02:16.1]} 22. Qd3 {[%clk 0:01:56.2]} 22... Qe7 {[%clk 0:02:11.4]} 23. Qd7
{[%clk 0:01:44.6]} 23... Kf8 {[%clk 0:02:07.8]} 24. Qxe7+ {[%clk 0:01:39.5]}
24... Kxe7 {[%clk 0:02:07.2]} 25. Bxe4 {[%clk 0:01:33.8]} 25... Bxe4 {[%clk
0:02:04.5]} 26. b5 {[%clk 0:01:32.3]} 26... h6 {[%clk 0:01:57.9]} 27. f3 {[%clk
0:01:31.3]} 27... Bb7 {[%clk 0:01:57]} 28. Kf2 {[%clk 0:01:30.7]} 28... Kf6
{[%clk 0:01:44.9]} 29. h4 {[%clk 0:01:20]} 29... g5 {[%clk 0:01:39.3]} 30. hxg5+
{[%clk 0:01:11.3]} 30... hxg5 {[%clk 0:01:38.6]} 31. Nc6 {[%clk 0:00:49.8]}
31... gxf4 {[%clk 0:01:30.7]} 32. exf4 {[%clk 0:00:33.5]} 32... Bxc6 {[%clk
0:01:26.3]} 33. bxc6 {[%clk 0:00:33.3]} 33... Ke7 {[%clk 0:01:26.8]} 34. Kg3
{[%clk 0:00:33.8]} 34... Kd6 {[%clk 0:01:26.9]} 35. Kh4 {[%clk 0:00:34.3]} 35...
Kxc6 {[%clk 0:01:26.8]} 36. Kg5 {[%clk 0:00:34.8]} 36... b5 {[%clk 0:01:25]} 37.
cxb5+ {[%clk 0:00:27.9]} 37... Kxb5 {[%clk 0:01:24.4]} 38. Kf6 {[%clk
0:00:28.5]} 38... c4 {[%clk 0:01:24.7]} 39. Kxe6 {[%clk 0:00:29]} 39... c3
{[%clk 0:01:25.6]} 40. Kxf5 {[%clk 0:00:29.4]} 40... c2 {[%clk 0:01:26.5]} 41.
Ke6 {[%clk 0:00:29.9]} 41... c1=Q {[%clk 0:01:27.4]} 42. f5 {[%clk 0:00:30.4]}
42... Qxa3 {[%clk 0:01:26.8]} 43. f6 {[%clk 0:00:29.9]} 43... Qf8 {[%clk
0:01:26.7]} 44. f7 {[%clk 0:00:29.5]} 44... a5 {[%clk 0:01:27.6]} 0-1

[Event "*** SCC Grand Prix: Titled Tuesday Blitz"]
[Site "Chess.com"]
[Date "2020.07.07"]
[Round "1"]
[White "mattcolins2025"]
[Black "Volodar_Murzin"]
[Result "1-0"]
[WhiteElo "2380"]
[BlackElo "2664"]
[TimeControl "180+1"]
[EndTime "10:06:20 PDT"]
[Termination "mattcolins2025 won by resignation"]

1. d4 {[%clk 0:03:00.9]} 1... Nf6 {[%clk 0:02:59.7]} 2. c4 {[%clk 0:03:01.4]}
2... g6 {[%clk 0:02:59.9]} 3. Nc3 {[%clk 0:03:02]} 3... Bg7 {[%clk 0:03:00.4]}
4. e4 {[%clk 0:03:02.3]} 4... O-O {[%clk 0:03:01]} 5. Nf3 {[%clk 0:03:02.9]}
5... d6 {[%clk 0:03:01.6]} 6. Be2 {[%clk 0:03:03.8]} 6... e5 {[%clk 0:03:00.9]}
7. d5 {[%clk 0:03:04.1]} 7... a5 {[%clk 0:02:59.7]} 8. Bg5 {[%clk 0:03:04.4]}
8... h6 {[%clk 0:02:58.3]} 9. Bh4 {[%clk 0:03:04.7]} 9... Na6 {[%clk 0:02:57.6]}
10. Nd2 {[%clk 0:03:04.7]} 10... Qe8 {[%clk 0:02:56.2]} 11. O-O {[%clk
0:03:04.9]} 11... Nh7 {[%clk 0:02:54.8]} 12. b3 {[%clk 0:03:04.8]} 12... f5
{[%clk 0:02:52.9]} 13. f3 {[%clk 0:03:04.3]} 13... g5 {[%clk 0:02:38.2]} 14. Bf2
{[%clk 0:03:04.2]} 14... f4 {[%clk 0:02:38.7]} 15. a3 {[%clk 0:03:03.8]} 15...
Bd7 {[%clk 0:02:36]} 16. Rb1 {[%clk 0:03:03.5]} 16... b6 {[%clk 0:02:21.8]} 17.
b4 {[%clk 0:03:03.5]} 17... h5 {[%clk 0:02:20.9]} 18. c5 {[%clk 0:02:31.9]}
18... axb4 {[%clk 0:02:14.5]} 19. axb4 {[%clk 0:02:31.9]} 19... bxc5 {[%clk
0:02:14.8]} 20. bxc5 {[%clk 0:02:32.8]} 20... dxc5 {[%clk 0:01:51.4]} 21. Nc4
{[%clk 0:02:29.3]} 21... Rf6 {[%clk 0:01:31.7]} 22. d6 {[%clk 0:02:25.2]} 22...
cxd6 {[%clk 0:01:28.3]} 23. Nd5 {[%clk 0:02:24.7]} 23... Bf8 {[%clk 0:01:03.1]}
24. Ncb6 {[%clk 0:02:21.5]} 24... Ra7 {[%clk 0:00:53.7]} 25. Bc4 {[%clk
0:01:51.3]} 25... Rf7 {[%clk 0:00:16.2]} 26. Nxd7 {[%clk 0:01:49.1]} 26... Qxd7
{[%clk 0:00:14.9]} 27. Nb6 {[%clk 0:01:44.7]} 27... Qe8 {[%clk 0:00:13.9]} 28.
Ra1 {[%clk 0:01:39.6]} 28... Qc6 {[%clk 0:00:12.6]} 29. Bxf7+ {[%clk 0:01:32.5]}
29... Kxf7 {[%clk 0:00:08.8]} 30. Qd5+ {[%clk 0:01:28.6]} 30... Qxd5 {[%clk
0:00:07.5]} 31. Nxd5 {[%clk 0:01:29.5]} 31... Nf6 {[%clk 0:00:06.5]} 32. Ra5
{[%clk 0:01:23]} 32... Nxd5 {[%clk 0:00:04.3]} 33. exd5 {[%clk 0:01:23.9]} 33...
Kf6 {[%clk 0:00:02.7]} 34. Rfa1 {[%clk 0:01:23.2]} 34... Be7 {[%clk 0:00:01.9]}
35. Rxa6 {[%clk 0:01:23.3]} 35... Rb7 {[%clk 0:00:02.8]} 36. Bxc5 {[%clk
0:01:21.9]} 36... Kf5 {[%clk 0:00:03.2]} 37. Bxd6 {[%clk 0:01:21.4]} 37... Bf6
{[%clk 0:00:03.8]} 38. Bc5 {[%clk 0:01:19]} 38... e4 {[%clk 0:00:04]} 39. fxe4+
{[%clk 0:01:19.3]} 39... Kxe4 {[%clk 0:00:04.3]} 40. Rxf6 {[%clk 0:01:19.5]}
40... Kxd5 {[%clk 0:00:05.2]} 41. Bf2 {[%clk 0:01:19.6]} 41... Ke4 {[%clk
0:00:06.1]} 42. Re1+ {[%clk 0:01:18.6]} 1-0

[Event "*** SCC Grand Prix: Titled Tuesday Blitz"]
[Site "Chess.com"]
[Date "2020.07.07"]
[Round "1"]
[White "SahajGrover"]
[Black "chessfrendz"]
[Result "1-0"]
[WhiteElo "2660"]
[BlackElo "2336"]
[TimeControl "180+1"]
[EndTime "10:06:20 PDT"]
[Termination "SahajGrover won by resignation"]

1. e4 {[%clk 0:02:59.5]} 1... c5 {[%clk 0:02:58.9]} 2. Nf3 {[%clk 0:02:59.5]}
2... d6 {[%clk 0:02:59.4]} 3. d4 {[%clk 0:02:59.7]} 3... cxd4 {[%clk 0:02:58.9]}
4. Nxd4 {[%clk 0:03:00.6]} 4... Nf6 {[%clk 0:02:58.9]} 5. Nc3 {[%clk 0:03:00.3]}
5... a6 {[%clk 0:02:59.3]} 6. Bc4 {[%clk 0:02:58.1]} 6... e6 {[%clk 0:02:58.6]}
7. Bb3 {[%clk 0:02:58.2]} 7... Nbd7 {[%clk 0:02:57.1]} 8. Bg5 {[%clk 0:02:57.3]}
8... Nc5 {[%clk 0:02:56]} 9. f4 {[%clk 0:02:54.1]} 9... Be7 {[%clk 0:02:50.7]}
10. Qf3 {[%clk 0:02:53.3]} 10... Qc7 {[%clk 0:02:46.3]} 11. O-O {[%clk
0:02:43.1]} 11... O-O {[%clk 0:02:42.3]} 12. Rae1 {[%clk 0:02:37.7]} 12... Nxb3
{[%clk 0:02:23]} 13. Nxb3 {[%clk 0:02:22.3]} 13... h6 {[%clk 0:02:22]} 14. Bh4
{[%clk 0:02:19.5]} 14... Nh7 {[%clk 0:02:19.1]} 15. Bxe7 {[%clk 0:02:12.6]}
15... Qxe7 {[%clk 0:02:18.4]} 16. Rd1 {[%clk 0:02:11.3]} 16... Rd8 {[%clk
0:02:17]} 17. a4 {[%clk 0:02:09.7]} 17... Nf6 {[%clk 0:02:13.8]} 18. Rd2 {[%clk
0:02:07]} 18... e5 {[%clk 0:01:54.9]} 19. fxe5 {[%clk 0:01:55.4]} 19... Qxe5
{[%clk 0:01:53.8]} 20. Nd5 {[%clk 0:01:55.1]} 20... Be6 {[%clk 0:01:34.4]} 21.
Nxf6+ {[%clk 0:01:53.7]} 21... Qxf6 {[%clk 0:01:30.9]} 22. Qxf6 {[%clk
0:01:53.1]} 22... gxf6 {[%clk 0:01:30.6]} 23. Rxf6 {[%clk 0:01:46.5]} 23... Kg7
{[%clk 0:01:29.5]} 24. Rdf2 {[%clk 0:01:42]} 24... Bxb3 {[%clk 0:01:24.7]} 25.
cxb3 {[%clk 0:01:42.9]} 25... Rd7 {[%clk 0:01:24.5]} 26. R6f5 {[%clk 0:01:37.9]}
26... Re8 {[%clk 0:01:24.6]} 27. R2f4 {[%clk 0:01:34.4]} 27... Re6 {[%clk
0:01:24.7]} 28. Kf2 {[%clk 0:01:33.8]} 28... Rde7 {[%clk 0:01:22.1]} 29. Ke3
{[%clk 0:01:33.7]} 29... Re5 {[%clk 0:01:19.7]} 30. Kd4 {[%clk 0:01:31.4]} 30...
Rxf5 {[%clk 0:01:19.1]} 31. Rxf5 {[%clk 0:01:32.3]} 31... Rc7 {[%clk 0:01:17.5]}
32. Rf2 {[%clk 0:01:30.1]} 32... Rc5 {[%clk 0:01:16.8]} 33. b4 {[%clk 0:01:28]}
33... Re5 {[%clk 0:01:16.6]} 34. Rf5 {[%clk 0:01:24.8]} 34... Re6 {[%clk
0:01:05.5]} 35. b5 {[%clk 0:01:24]} 35... Rg6 {[%clk 0:00:57.8]} 36. g3 {[%clk
0:01:21.7]} 36... Rg4 {[%clk 0:00:39.3]} 37. bxa6 {[%clk 0:01:18]} 37... bxa6
{[%clk 0:00:38.7]} 38. Ra5 {[%clk 0:01:18.5]} 38... f6 {[%clk 0:00:34.9]} 39. b4
{[%clk 0:01:16]} 39... Kg6 {[%clk 0:00:33.9]} 40. Rxa6 {[%clk 0:01:15]} 40... f5
{[%clk 0:00:33.7]} 41. Rxd6+ {[%clk 0:01:14.5]} 41... Kg5 {[%clk 0:00:33.1]} 42.
Re6 {[%clk 0:01:14]} 42... Rxe4+ {[%clk 0:00:32.4]} 43. Rxe4 {[%clk 0:01:14.9]}
43... fxe4 {[%clk 0:00:31.8]} 44. Kxe4 {[%clk 0:01:15.8]} 1-0

[Event "*** SCC Grand Prix: Titled Tuesday Blitz"]
[Site "Chess.com"]
[Date "2020.07.07"]
[Round "1"]
[White "Atanejhad"]
[Black "ExceptionallyDubious"]
[Result "1-0"]
[WhiteElo "2392"]
[BlackElo "2686"]
[TimeControl "180+1"]
[EndTime "10:06:27 PDT"]
[Termination "Atanejhad won by checkmate"]

1. e4 {[%clk 0:02:54.9]} 1... c5 {[%clk 0:02:59.7]} 2. Nf3 {[%clk 0:02:42.2]}
2... d6 {[%clk 0:03:00.2]} 3. d4 {[%clk 0:02:42.1]} 3... cxd4 {[%clk 0:03:01.1]}
4. Nxd4 {[%clk 0:02:43]} 4... Nf6 {[%clk 0:03:01.7]} 5. Nc3 {[%clk 0:02:43.5]}
5... a6 {[%clk 0:03:02.2]} 6. Be3 {[%clk 0:02:44.1]} 6... e6 {[%clk 0:03:02.4]}
7. Qd2 {[%clk 0:02:40.9]} 7... b5 {[%clk 0:03:01.6]} 8. a3 {[%clk 0:02:39]} 8...
Bb7 {[%clk 0:03:01.3]} 9. f3 {[%clk 0:02:39.3]} 9... Nbd7 {[%clk 0:03:01.9]} 10.
g4 {[%clk 0:02:37.9]} 10... Nb6 {[%clk 0:03:01.8]} 11. g5 {[%clk 0:02:38.1]}
11... Nfd7 {[%clk 0:03:02.1]} 12. O-O-O {[%clk 0:02:36.9]} 12... Ne5 {[%clk
0:03:01]} 13. Kb1 {[%clk 0:02:30.7]} 13... Nec4 {[%clk 0:03:00.3]} 14. Bxc4
{[%clk 0:02:29.5]} 14... Nxc4 {[%clk 0:03:01.2]} 15. Qf2 {[%clk 0:02:29.8]}
15... Rc8 {[%clk 0:02:59.7]} 16. Rd3 {[%clk 0:02:23.7]} 16... Be7 {[%clk
0:02:58.2]} 17. h4 {[%clk 0:02:21.2]} 17... Qa5 {[%clk 0:02:48.3]} 18. Nb3
{[%clk 0:02:17.1]} 18... Qc7 {[%clk 0:02:48.6]} 19. h5 {[%clk 0:02:04.3]} 19...
d5 {[%clk 0:01:59.1]} 20. exd5 {[%clk 0:02:02]} 20... b4 {[%clk 0:01:59.6]} 21.
axb4 {[%clk 0:01:41.4]} 21... Bxb4 {[%clk 0:01:59.5]} 22. g6 {[%clk 0:01:21.6]}
22... hxg6 {[%clk 0:01:58.5]} 23. dxe6 {[%clk 0:01:20.9]} 23... gxh5 {[%clk
0:01:01.3]} 24. Rd7 {[%clk 0:00:20.8]} 24... Qe5 {[%clk 0:01:01]} 25. Bd4 {[%clk
0:00:17.9]} 25... Qxe6 {[%clk 0:01:00.7]} 26. Rxb7 {[%clk 0:00:18]} 26... Bxc3
{[%clk 0:00:58.5]} 27. Bxc3 {[%clk 0:00:18.9]} 27... O-O {[%clk 0:00:58.7]} 28.
Rxh5 {[%clk 0:00:18.4]} 28... Na3+ {[%clk 0:00:58.8]} 29. bxa3 {[%clk
0:00:18.1]} 29... Rxc3 {[%clk 0:00:58.8]} 30. Qh2 {[%clk 0:00:18.1]} 30... Rxb3+
{[%clk 0:00:51.4]} 31. Rxb3 {[%clk 0:00:16.6]} 31... f6 {[%clk 0:00:48.1]} 32.
Rh8+ {[%clk 0:00:15.7]} 32... Kf7 {[%clk 0:00:48.7]} 33. Rb7+ {[%clk 0:00:15.6]}
33... Kg6 {[%clk 0:00:49.2]} 34. Qh5# {[%clk 0:00:15.5]} 1-0

[Event "*** SCC Grand Prix: Titled Tuesday Blitz"]
[Site "Chess.com"]
[Date "2020.07.07"]
[Round "1"]
[White "sewin16"]
[Black "BlueWizzard"]
[Result "0-1"]
[WhiteElo "2411"]
[BlackElo "2783"]
[TimeControl "180+1"]
[EndTime "10:06:28 PDT"]
[Termination "BlueWizzard won by resignation"]

1. e4 {[%clk 0:02:59.5]} 1... c6 {[%clk 0:03:00.9]} 2. d4 {[%clk 0:02:58.8]}
2... g6 {[%clk 0:03:01.7]} 3. Nc3 {[%clk 0:02:58.8]} 3... Bg7 {[%clk 0:03:01.5]}
4. Nf3 {[%clk 0:02:58.2]} 4... d6 {[%clk 0:02:59.3]} 5. h3 {[%clk 0:02:57.6]}
5... b5 {[%clk 0:02:58.9]} 6. a3 {[%clk 0:02:57]} 6... Nf6 {[%clk 0:02:58.7]} 7.
Bf4 {[%clk 0:02:54.7]} 7... O-O {[%clk 0:02:53.6]} 8. e5 {[%clk 0:02:52.3]} 8...
dxe5 {[%clk 0:02:44.3]} 9. dxe5 {[%clk 0:02:51.8]} 9... Nd5 {[%clk 0:02:44.6]}
10. Nxd5 {[%clk 0:02:44.7]} 10... cxd5 {[%clk 0:02:45.5]} 11. c3 {[%clk
0:02:41.1]} 11... a6 {[%clk 0:02:40.9]} 12. Be2 {[%clk 0:02:38.7]} 12... Nc6
{[%clk 0:02:40.4]} 13. Bg3 {[%clk 0:02:35.8]} 13... Bf5 {[%clk 0:02:39.8]} 14.
O-O {[%clk 0:02:34.9]} 14... Be4 {[%clk 0:02:39.7]} 15. Re1 {[%clk 0:02:32.2]}
15... e6 {[%clk 0:02:39.3]} 16. Nd4 {[%clk 0:02:21.7]} 16... Nxe5 {[%clk
0:02:32.1]} 17. Bxe5 {[%clk 0:02:12]} 17... Bxe5 {[%clk 0:02:33]} 18. Nc6 {[%clk
0:02:12.4]} 18... Qc7 {[%clk 0:02:24.8]} 19. Nxe5 {[%clk 0:02:12.1]} 19... Qxe5
{[%clk 0:02:25.7]} 20. f3 {[%clk 0:02:05.5]} 20... Bf5 {[%clk 0:02:24.9]} 21.
Bf1 {[%clk 0:02:00.4]} 21... Qg3 {[%clk 0:02:22.2]} 22. Kh1 {[%clk 0:01:46.4]}
22... Rfd8 {[%clk 0:02:14.4]} 23. Qd4 {[%clk 0:01:44.1]} 23... h5 {[%clk
0:02:07.6]} 24. a4 {[%clk 0:01:16.1]} 24... bxa4 {[%clk 0:01:58.8]} 25. Qxa4
{[%clk 0:01:15]} 25... Rab8 {[%clk 0:01:53]} 26. b4 {[%clk 0:01:07.8]} 26... d4
{[%clk 0:01:53]} 27. c4 {[%clk 0:00:53.2]} 27... d3 {[%clk 0:01:50.1]} 28. c5
{[%clk 0:00:44.7]} 28... Rd4 {[%clk 0:01:43.7]} 29. Qxa6 {[%clk 0:00:38.5]}
29... Rdxb4 {[%clk 0:01:33.2]} 30. c6 {[%clk 0:00:37.7]} 30... Bxh3 {[%clk
0:01:11.6]} 31. Qxd3 {[%clk 0:00:32.5]} 31... Bf5 {[%clk 0:01:02.1]} 32. Qd7
{[%clk 0:00:31.9]} 32... Qf2 {[%clk 0:00:45.8]} 33. Qe7 {[%clk 0:00:14.5]} 33...
Rh4+ {[%clk 0:00:43.8]} 0-1

[Event "*** SCC Grand Prix: Titled Tuesday Blitz"]
[Site "Chess.com"]
[Date "2020.07.07"]
[Round "1"]
[White "NowInChess"]
[Black "vovachesss"]
[Result "0-1"]
[WhiteElo "2183"]
[BlackElo "2540"]
[TimeControl "180+1"]
[EndTime "10:06:29 PDT"]
[Termination "vovachesss won by resignation"]

1. e4 {[%clk 0:03:00.9]} 1... Nf6 {[%clk 0:02:58]} 2. e5 {[%clk 0:03:00.1]} 2...
Nd5 {[%clk 0:02:58.6]} 3. Nc3 {[%clk 0:03:00.3]} 3... Nxc3 {[%clk 0:02:58.4]} 4.
bxc3 {[%clk 0:03:01.2]} 4... d5 {[%clk 0:02:59]} 5. d4 {[%clk 0:02:59.9]} 5...
c5 {[%clk 0:02:55.2]} 6. Be3 {[%clk 0:02:55.4]} 6... Nc6 {[%clk 0:02:45.6]} 7.
Nf3 {[%clk 0:02:44.3]} 7... Bg4 {[%clk 0:02:45.3]} 8. Be2 {[%clk 0:02:43.8]}
8... e6 {[%clk 0:02:45.1]} 9. O-O {[%clk 0:02:42.8]} 9... Qa5 {[%clk 0:02:38.3]}
10. c4 {[%clk 0:01:46.5]} 10... dxc4 {[%clk 0:01:53.8]} 11. d5 {[%clk
0:01:20.3]} 11... O-O-O {[%clk 0:01:53.3]} 12. dxc6 {[%clk 0:00:51.8]} 12...
Rxd1 {[%clk 0:01:52.4]} 13. cxb7+ {[%clk 0:00:52]} 13... Kxb7 {[%clk 0:01:20.1]}
14. Rfxd1 {[%clk 0:00:50.7]} 14... Kc7 {[%clk 0:01:20.5]} 15. Bxc4 {[%clk
0:00:28.2]} 15... Be7 {[%clk 0:01:20.1]} 16. Rd3 {[%clk 0:00:17.1]} 16... Rd8
{[%clk 0:01:12.3]} 17. Rb3 {[%clk 0:00:15.9]} 17... Rb8 {[%clk 0:01:04]} 18. Rd3
{[%clk 0:00:15.5]} 18... Bf5 {[%clk 0:01:00.1]} 19. Rd2 {[%clk 0:00:09.7]} 19...
Rd8 {[%clk 0:00:58.7]} 20. Rxd8 {[%clk 0:00:08.6]} 20... Bxd8 {[%clk 0:00:58.4]}
21. Rd1 {[%clk 0:00:09.2]} 21... Bxc2 {[%clk 0:00:50.6]} 22. Rc1 {[%clk
0:00:09.2]} 22... Be4 {[%clk 0:00:46.6]} 23. Bxc5 {[%clk 0:00:08.9]} 23... Qxc5
{[%clk 0:00:43.6]} 24. Nd2 {[%clk 0:00:06.5]} 24... Bd5 {[%clk 0:00:38.6]} 25.
Nb3 {[%clk 0:00:06.5]} 25... Qxc4 {[%clk 0:00:38.8]} 26. Rxc4+ {[%clk
0:00:04.5]} 26... Bxc4 {[%clk 0:00:39.7]} 0-1